bitfinex/quotes_BTCUSD_20241202
["timestamp","ask_amount","ask_price","bid_price","bid_amount"]
[1733159114309,0.5954231,96526.0,96525.0,0.001726]
[1733159114527,0.1686563,96526.0,96525.0,0.001726]
[1733159115407,0.1736563,96526.0,96525.0,0.001726]
[1733159115821,0.1686563,96526.0,96525.0,0.001726]
[1733159116024,0.1716563,96526.0,96525.0,0.001726]
[1733159116424,0.1686563,96526.0,96525.0,0.001726]
[1733159116710,0.1716563,96526.0,96525.0,0.001726]
[1733159116921,0.57733297,96526.0,96525.0,0.001726]
[1733159117126,0.77733297,96526.0,96525.0,0.001726]
[1733159118413,0.94314867,96526.0,96525.0,0.001726]
[1733159118739,0.92763297,96526.0,96525.0,0.001726]
[1733159119175,0.90463297,96526.0,96525.0,0.001726]
[1733159119385,0.80180151,96526.0,96525.0,0.001726]
[1733159120334,0.82480151,96526.0,96525.0,1e-06]
[1733159121515,0.82695151,96526.0,96525.0,1e-06]
[1733159121957,1.20652781,96526.0,96525.0,1e-06]
[1733159122100,1.30935927,96526.0,96525.0,1e-06]
[1733159122294,1.30935927,96526.0,96525.0,5e-07]
[1733159122552,0.94051597,96526.0,96525.0,5e-07]
[1733159123520,0.77571103,96513.0,96512.0,5e-07]
[1733159123795,0.98075624,96513.0,96512.0,5e-07]
[1733159124020,1.1321877,96513.0,96512.0,5e-07]
[1733159126098,1.1391877,96513.0,96512.0,5e-07]
[1733159126328,1.1391877,96513.0,96493.0,0.0008657]
[1733159126329,0.77574203,96499.0,96493.0,0.0008657]
[1733159126586,0.87858724,96499.0,96493.0,0.0008657]
[1733159127575,0.89574635,96499.0,96493.0,0.0008657]
[1733159127819,0.99857781,96499.0,96493.0,0.0008657]
[1733159128510,1.02157781,96499.0,96493.0,0.0008657]
[1733159128733,1.0094187,96499.0,96493.0,0.0008657]
[1733159129637,0.88358724,96499.0,96493.0,0.0008657]
[1733159132491,0.90658724,96499.0,96493.0,0.0008657]
[1733159134231,0.92386897,96499.0,96493.0,0.0008657]
[1733159138198,0.23074203,96499.0,96493.0,0.0008657]
[1733159138706,0.33358724,96499.0,96493.0,0.0008657]
[1733159139428,0.42689893,96499.0,96493.0,0.0008657]
[1733159139647,0.57689893,96499.0,96493.0,0.0008657]
[1733159139869,0.47858724,96499.0,96498.0,0.0018657]
[1733159140095,0.37574203,96499.0,96498.0,0.0018657]
[1733159140324,0.47858724,96499.0,96498.0,0.0018657]
[1733159140554,0.87858724,96499.0,96498.0,0.0018657]
[1733159140825,1.0833187,96499.0,96498.0,0.0018657]
[1733159141286,1.0833187,96499.0,96498.0,0.0008657]
[1733159142296,1.0903187,96499.0,96498.0,0.0018657]
[1733159142529,1.0833187,96499.0,96498.0,0.0008657]
[1733159142779,1.0923187,96499.0,96498.0,0.0018657]
[1733159143724,1.0923187,96499.0,96498.0,7e-07]
[1733159144657,0.77575203,96494.0,96493.0,0.0008657]
[1733159144906,1.0044287,96494.0,96493.0,0.0008657]
[1733159145964,1.0044287,96494.0,96493.0,0.00145493]
[1733159146170,1.0124287,96494.0,96493.0,0.00245493]
[1733159146383,0.90959724,96494.0,96493.0,0.00181408]
[1733159146602,0.88659724,96494.0,96493.0,0.00181408]
[1733159147992,0.90371689,96494.0,96493.0,0.00181408]
[1733159148606,0.88659724,96494.0,96493.0,0.00181408]
[1733159148811,0.90959724,96494.0,96493.0,0.00181408]
[1733159149011,1.0124287,96494.0,96493.0,0.00181408]
[1733159151378,1.0044287,96494.0,96493.0,0.00081408]
[1733159151788,1.0114287,96494.0,96493.0,8e-08]
[1733159153858,0.41848603,96474.0,96473.0,4.8e-07]
[1733159154084,0.75347984,96474.0,96473.0,4.8e-07]
[1733159154282,0.96078884,96474.0,96473.0,4.8e-07]
[1733159155132,0.22583603,96455.0,96428.0,0.0008656]
[1733159155334,0.67868124,96455.0,96454.0,0.00104246]
[1733159156484,0.47868124,96455.0,96454.0,0.00104246]
[1733159156694,0.48468124,96455.0,96454.0,0.00204246]
[1733159158441,0.7875127,96455.0,96454.0,0.00204246]
[1733159159471,0.68368124,96455.0,96454.0,0.00204246]
[1733159160086,0.48368124,96455.0,96454.0,0.00204246]
[1733159162312,0.38083603,96455.0,96454.0,0.00204246]
[1733159163403,0.48368124,96455.0,96454.0,0.00204246]
[1733159164214,0.70084475,96455.0,96454.0,0.00204246]
[1733159164394,0.80367621,96455.0,96454.0,0.00204246]
[1733159164845,0.50084475,96455.0,96454.0,0.00204246]
[1733159167252,0.70084475,96455.0,96454.0,0.00204246]
[1733159167683,0.70084475,96455.0,96428.0,0.0008656]
[1733159167684,0.22489203,96429.0,96428.0,0.0008656]
[1733159168600,0.23445316,96429.0,96428.0,0.0008656]
[1733159169056,0.23445316,96429.0,96428.0,0.0018656]
[1733159169057,0.23545316,96429.0,96428.0,0.0018656]
[1733159169498,0.02804716,96429.0,96428.0,0.0018656]
[1733159169702,0.02704716,96429.0,96428.0,0.0008656]
[1733159171008,0.01056113,96429.0,96428.0,0.0008656]
[1733159171225,0.01748603,96431.0,96428.0,0.0008656]
[1733159171636,0.001,96429.0,96428.0,0.0008656]
[1733159172001,0.208406,96429.0,96428.0,0.0008656]
[1733159172410,0.22489203,96429.0,96428.0,0.0008656]
[1733159173026,0.23444329,96429.0,96428.0,0.0008656]
[1733159174414,0.23544329,96429.0,96428.0,0.0008656]
[1733159175329,0.23444329,96429.0,96428.0,0.0008656]
[1733159175526,0.23544329,96429.0,96428.0,0.0008656]
[1733159175944,0.3382885,96429.0,96428.0,0.0008656]
[1733159176152,0.4882885,96429.0,96428.0,0.0008656]
[1733159177036,0.9112885,96429.0,96428.0,0.0008656]
[1733159177251,0.9102885,96429.0,96428.0,0.0008656]
[1733159177458,0.9112885,96429.0,96428.0,0.0008656]
[1733159177663,1.01311996,96429.0,96428.0,0.0008656]
[1733159178108,1.0045687,96429.0,96428.0,0.0008656]
[1733159178314,1.02166393,96429.0,96428.0,0.0008656]
[1733159178886,1.03120357,96429.0,96428.0,0.0008656]
[1733159179298,1.03120357,96429.0,96428.0,6e-07]
[1733159179453,1.02166393,96429.0,96428.0,6e-07]
[1733159179661,1.01410015,96429.0,96428.0,6e-07]
[1733159180066,1.06050015,96429.0,96428.0,6e-07]
[1733159180281,0.95766869,96429.0,96428.0,6e-07]
[1733159181585,0.91126869,96429.0,96428.0,6e-07]
[1733159181998,0.9285281,96429.0,96428.0,6e-07]
[1733159182214,0.33804207,96429.0,96428.0,6e-07]
[1733159182418,0.23542348,96429.0,96428.0,6e-07]
[1733159182854,0.001,96429.0,96428.0,6e-07]
[1733159183063,0.22589203,96429.0,96428.0,6e-07]
[1733159183720,0.22489203,96429.0,96428.0,6e-07]
[1733159184197,0.22589203,96429.0,96428.0,6e-07]
[1733159185028,0.23541864,96429.0,96428.0,6e-07]
[1733159185495,0.22589203,96429.0,96428.0,6e-07]
[1733159185698,0.38066044,96429.0,96428.0,6e-07]
[1733159186340,0.32873724,96429.0,96428.0,6e-07]
[1733159186556,0.33826611,96429.0,96428.0,6e-07]
[1733159187413,0.2354209,96429.0,96428.0,6e-07]
[1733159187625,0.01848603,96429.0,96428.0,6e-07]
[1733159191377,0.208406,96429.0,96428.0,0.0767006]
[1733159191681,0.001,96429.0,96428.0,0.0767006]
[1733159192166,0.001,96429.0,96428.0,0.43678926]
[1733159192385,0.207349,96456.0,96428.0,0.35825381]
[1733159192386,0.01748603,96449.0,96428.0,0.35825381]
[1733159192582,0.207349,96456.0,96438.0,0.207386]
[1733159192583,0.01748603,96450.0,96438.0,0.207386]
[1733159192781,0.01748603,96450.0,96440.0,0.207382]
[1733159192902,0.01748603,96450.0,96439.0,0.18174521]
[1733159193309,0.00191054,96455.0,96440.0,0.12583358]
[1733159193519,0.01748603,96465.0,96451.0,0.0806]
[1733159193721,0.01748603,96471.0,96453.0,0.0474]
[1733159193975,0.01748603,96471.0,96457.0,0.207345]
[1733159194187,0.01748603,96471.0,96454.0,0.312032]
[1733159194188,0.01748603,96471.0,96458.0,0.10284521]
[1733159194617,0.001,96465.0,96458.0,0.10284521]
[1733159194813,0.001,96465.0,96458.0,0.11996225]
[1733159195014,0.22480403,96471.0,96458.0,0.81996225]
[1733159195236,0.01748603,96466.0,96458.0,0.7]
[1733159195383,0.207335,96463.0,96458.0,0.7]
[1733159195593,0.207329,96465.0,96458.0,0.7]
[1733159195833,0.01748603,96461.0,96458.0,0.7]
[1733159196042,0.01748603,96459.0,96458.0,0.7]
[1733159196253,0.22482703,96459.0,96458.0,0.7]
[1733159196881,0.22482703,96459.0,96458.0,0.707]
[1733159197136,0.22482703,96459.0,96458.0,0.7]
[1733159197350,0.01684547,96480.0,96458.0,0.7]
[1733159197351,0.01748603,96469.0,96458.0,0.7]
[1733159197574,0.01748603,96473.0,96459.0,0.10468007]
[1733159197713,0.01748603,96473.0,96462.0,0.207333]
[1733159197917,0.01748603,96473.0,96462.0,0.10284521]
[1733159198391,0.207337,96462.0,96459.0,0.7]
[1733159198593,0.01748603,96460.0,96459.0,0.7]
[1733159199587,0.27033124,96460.0,96459.0,0.7]
[1733159199804,0.27033124,96460.0,96458.0,0.008]
[1733159199805,0.59782703,96459.0,96458.0,0.008]
[1733159200018,0.8035037,96459.0,96458.0,0.008]
[1733159200230,0.20738,96441.0,96427.0,0.0781]
[1733159200449,0.22486603,96441.0,96427.0,0.0781]
[1733159201705,0.22486603,96441.0,96440.0,0.0015897]
[1733159201936,0.22486603,96441.0,96440.0,0.0005897]
[1733159203325,0.22486603,96441.0,96440.0,0.0035897]
[1733159203749,0.22486603,96441.0,96440.0,0.0005897]
[1733159203963,0.22486603,96441.0,96440.0,0.0045897]
[1733159205025,0.20738,96441.0,96440.0,0.0045897]
[1733159206247,0.2091148,96441.0,96440.0,0.0045897]
[1733159207128,0.22660083,96441.0,96440.0,0.0145897]
[1733159209290,0.47944604,96441.0,96440.0,0.0145897]
[1733159209915,0.70244604,96441.0,96440.0,0.0145897]
[1733159210129,0.71195542,96441.0,96440.0,0.0145897]
[1733159210336,0.71195542,96441.0,96440.0,0.0105897]
[1733159210541,0.72961388,96441.0,96440.0,0.0135897]
[1733159211006,0.83244534,96441.0,96440.0,0.0105897]
[1733159211238,0.83244839,96441.0,96440.0,0.0135897]
[1733159211476,0.72961693,96441.0,96440.0,0.0135897]
[1733159211952,0.92961693,96441.0,96440.0,0.0135897]
[1733159212161,1.05681693,96441.0,96440.0,7e-07]
[1733159212392,0.21748603,96429.0,96401.0,0.0008663]
[1733159212627,0.70073724,96429.0,96401.0,0.0008663]
[1733159212830,0.91024967,96429.0,96401.0,0.0008663]
[1733159213039,1.01308113,96429.0,96401.0,0.0008663]
[1733159213248,0.91024967,96429.0,96401.0,0.0008663]
[1733159214631,0.91224967,96429.0,96401.0,0.0008663]
[1733159215671,0.48924967,96429.0,96401.0,0.0008663]
[1733159217427,0.71224967,96429.0,96401.0,0.0008663]
[1733159217633,0.81508113,96429.0,96401.0,0.0008663]
[1733159218043,1.01508113,96429.0,96401.0,0.0008663]
[1733159218368,0.91224967,96429.0,96401.0,0.0008663]
[1733159219100,0.92939674,96429.0,96401.0,0.0008663]
[1733159220392,0.92938972,96429.0,96401.0,0.0008663]
[1733159221850,1.05358972,96429.0,96401.0,0.0008663]
[1733159223386,0.85358972,96429.0,96401.0,0.0008663]
[1733159223633,0.35638972,96429.0,96406.0,0.0814]
[1733159223853,0.23639744,96429.0,96406.0,0.0814]
[1733159224073,0.22689203,96429.0,96409.0,0.01711928]
[1733159224296,0.002,96429.0,96410.0,0.207446]
[1733159224553,0.207391,96436.0,96428.0,0.0831006]
[1733159224791,0.01748603,96433.0,96428.0,0.0831006]
[1733159225022,0.207406,96430.0,96428.0,0.0831006]
[1733159225849,0.01748603,96429.0,96428.0,6e-07]
[1733159226051,0.01948603,96429.0,96428.0,6e-07]
[1733159226269,0.04048603,96429.0,96428.0,6e-07]
[1733159226710,0.33886024,96429.0,96428.0,0.0040006]
[1733159226913,0.29333124,96429.0,96428.0,6e-07]
[1733159227134,0.29333124,96429.0,96428.0,0.0040006]
[1733159227135,0.30284256,96429.0,96428.0,0.0040006]
[1733159227348,0.30384256,96429.0,96428.0,0.0040006]
[1733159227548,0.30284256,96429.0,96428.0,6e-07]
[1733159227758,0.39660722,96429.0,96428.0,6e-07]
[1733159228779,0.61184519,96429.0,96428.0,6e-07]
[1733159228977,0.60984519,96429.0,96428.0,6e-07]
[1733159229396,0.61284519,96429.0,96428.0,6e-07]
[1733159229601,0.69514519,96429.0,96428.0,6e-07]
[1733159230461,0.32108053,96429.0,96428.0,6e-07]
[1733159231294,0.32018653,96429.0,96428.0,6e-07]
[1733159231505,0.31918653,96429.0,96428.0,6e-07]
[1733159235210,0.28094856,96429.0,96428.0,6e-07]
[1733159235415,0.13094856,96429.0,96428.0,6e-07]
[1733159235848,0.12143724,96429.0,96428.0,6e-07]
[1733159236262,0.01859203,96429.0,96428.0,6e-07]
[1733159236470,0.02813395,96429.0,96428.0,6e-07]
[1733159236679,0.16859203,96429.0,96428.0,6e-07]
[1733159237297,0.01859203,96429.0,96428.0,6e-07]
[1733159237534,0.02813791,96429.0,96428.0,6e-07]
[1733159238334,0.05113791,96429.0,96428.0,6e-07]
[1733159238535,0.026,96429.0,96428.0,0.0769006]
[1733159238992,0.233406,96429.0,96428.0,0.0769006]
[1733159239196,0.003,96429.0,96428.0,0.0769006]
[1733159239627,0.01859203,96429.0,96428.0,0.0769006]
[1733159239845,0.16477604,96429.0,96428.0,6e-07]
[1733159240059,0.27143724,96429.0,96428.0,6e-07]
[1733159240272,0.29568396,96429.0,96428.0,6e-07]
[1733159240486,0.31968396,96429.0,96428.0,0.0040006]
[1733159240891,0.31868396,96429.0,96428.0,6e-07]
[1733159241109,0.32168396,96429.0,96428.0,6e-07]
[1733159242650,0.32254936,96429.0,96428.0,6e-07]
[1733159242866,0.02901,96429.0,96428.0,6e-07]
[1733159243494,0.01945743,96429.0,96428.0,6e-07]
[1733159243940,0.01645743,96429.0,96428.0,6e-07]
[1733159244355,0.04245743,96429.0,96428.0,6e-07]
[1733159244563,0.05201254,96429.0,96428.0,6e-07]
[1733159245034,0.05201254,96429.0,96428.0,0.0010006]
[1733159245241,0.04901254,96429.0,96428.0,6e-07]
[1733159245649,0.05101254,96429.0,96428.0,6e-07]
[1733159245858,0.04901254,96429.0,96428.0,6e-07]
[1733159247122,0.04901254,96429.0,96428.0,0.0020006]
[1733159251635,0.30185775,96429.0,96428.0,0.0020006]
[1733159251862,0.21431267,96429.0,96428.0,0.0020006]
[1733159252062,0.19901254,96429.0,96428.0,0.0020006]
[1733159252268,0.18342051,96429.0,96428.0,0.0020006]
[1733159252446,0.04901254,96429.0,96428.0,0.0020006]
[1733159253110,0.0008654,96429.0,96428.0,0.0831006]
[1733159253311,0.0017346,96440.0,96432.0,0.207397]
[1733159253508,0.0017346,96440.0,96430.0,0.0018353]
[1733159253737,0.0017346,96440.0,96430.0,0.10468051]
[1733159254113,0.0017346,96440.0,96431.0,0.10284521]
[1733159254341,0.00232367,96441.0,96435.0,0.207393]
[1733159254539,0.00232367,96441.0,96435.0,0.10468044]
[1733159254916,0.00232367,96441.0,96435.0,0.10284521]
[1733159257082,0.00232367,96441.0,96436.0,0.207391]
[1733159258156,0.00232367,96441.0,96435.0,0.12027375]
[1733159258366,0.00232367,96441.0,96435.0,0.12427375]
[1733159258782,0.00232367,96441.0,96435.0,0.12027375]
[1733159259201,0.00232367,96441.0,96436.0,0.207391]
[1733159259879,0.00232367,96441.0,96440.0,0.207382]
[1733159260124,0.00232367,96441.0,96440.0,0.31206222]
[1733159260479,0.00232367,96441.0,96440.0,0.31022721]
[1733159260577,0.00232367,96441.0,96440.0,1.01022721]
[1733159261059,0.00232367,96441.0,96440.0,1.01622721]
[1733159261302,0.00332367,96441.0,96440.0,0.706]
[1733159261562,0.0419157,96441.0,96440.0,0.7]
[1733159261781,0.0429157,96441.0,96440.0,0.706]
[1733159263401,0.00432367,96441.0,96440.0,0.706]
[1733159263827,0.0429157,96441.0,96440.0,0.706]
[1733159265292,0.0429157,96441.0,96440.0,0.006]
[1733159265517,0.023,96439.0,96427.0,0.1127]
[1733159265720,0.414795,96433.0,96430.0,0.7]
[1733159265929,0.023,96439.0,96430.0,0.7]
[1733159266138,0.00332367,96441.0,96432.0,0.2074]
[1733159266356,0.00332367,96441.0,96433.0,0.20923232]
[1733159266549,0.00332367,96441.0,96432.0,0.10284521]
[1733159266781,0.00332367,96441.0,96437.0,0.7]
[1733159267198,0.207382,96440.0,96437.0,0.7]
[1733159267422,0.20970467,96441.0,96437.0,0.7]
[1733159267588,0.001,96439.0,96437.0,0.7]
[1733159268036,0.207387,96438.0,96437.0,0.7]
[1733159268185,0.207387,96438.0,96437.0,0.707]
[1733159268792,0.230387,96438.0,96437.0,0.7]
[1733159269289,0.24597903,96438.0,96437.0,0.707]
[1733159269655,0.50838723,96438.0,96437.0,0.707]
[1733159270021,0.50838723,96438.0,96437.0,0.007]
[1733159270421,0.52369015,96438.0,96437.0,0.007]
[1733159270651,0.380406,96429.0,96415.0,0.7]
[1733159271003,0.39599803,96429.0,96415.0,0.7]
[1733159271212,0.40556282,96429.0,96415.0,0.7]
[1733159271417,0.39599803,96429.0,96415.0,0.7]
[1733159271873,0.40556561,96429.0,96415.0,0.7]
[1733159272484,0.40657094,96429.0,96428.0,0.0070006]
[1733159272686,0.40657054,96429.0,96428.0,0.0070006]
[1733159272889,0.231406,96429.0,96428.0,0.0070006]
[1733159273138,0.001,96429.0,96428.0,0.0070006]
[1733159273262,0.001,96429.0,96428.0,0.23658117]
[1733159273467,0.001,96429.0,96428.0,0.23474581]
[1733159274164,0.001,96429.0,96428.0,0.93474581]
[1733159275668,0.001,96429.0,96428.0,0.95205167]
[1733159279994,0.001,96429.0,96428.0,1.33645964]
[1733159280225,0.00232367,96441.0,96439.0,0.0823]
[1733159280394,0.00232367,96441.0,96440.0,0.10468021]
[1733159280596,0.00232367,96441.0,96440.0,0.31206221]
[1733159280809,0.00232367,96441.0,96440.0,0.31022721]
[1733159281016,0.00232367,96441.0,96440.0,0.51022721]
[1733159281470,0.00232367,96441.0,96440.0,1.21022721]
[1733159281886,0.00232367,96441.0,96440.0,0.707]
[1733159281887,0.00332367,96441.0,96440.0,0.707]
[1733159282525,0.0189157,96441.0,96440.0,0.707]
[1733159283117,0.02850962,96441.0,96440.0,0.707]
[1733159283746,0.207404,96430.0,96428.0,6e-07]
[1733159283975,0.207404,96430.0,96429.0,0.7]
[1733159285271,0.208404,96430.0,96429.0,0.708]
[1733159286526,0.001,96430.0,96429.0,0.708]
[1733159287598,0.001,96430.0,96429.0,0.85784521]
[1733159287831,0.02519545,96467.0,96440.0,0.2]
[1733159288006,0.00960391,96477.0,96447.0,0.2]
[1733159288171,0.00960391,96477.0,96445.0,0.12395474]
[1733159288172,0.00960391,96476.0,96456.0,0.207348]
[1733159288411,0.00960391,96480.0,96466.0,0.207326]
[1733159288610,0.01559203,96485.0,96458.0,0.00183463]
[1733159288864,0.01559203,96481.0,96459.0,0.10284521]
[1733159289013,0.01559203,96481.0,96448.0,0.1285]
[1733159289014,0.01559203,96475.0,96461.0,0.7]
[1733159289213,0.01559203,96470.0,96461.0,0.7]
[1733159289652,0.01559203,96478.0,96461.0,0.7]
[1733159290000,0.18418346,96523.0,96461.0,0.7]
[1733159290001,0.01559203,96481.0,96462.0,0.00183474]
[1733159290200,0.01559203,96475.0,96465.0,0.7]
[1733159290407,0.01559203,96470.0,96465.0,0.7]
[1733159290587,0.01559203,96466.0,96465.0,0.7]
[1733159291296,0.01559203,96469.0,96465.0,0.7]
[1733159291541,0.15,96479.0,96465.0,0.7]
[1733159291747,0.01559203,96485.0,96466.0,0.00183464]
[1733159291995,0.01559203,96485.0,96472.0,0.207312]
[1733159292570,0.01559203,96485.0,96473.0,0.20731]
[1733159292772,0.01559203,96485.0,96472.0,0.207314]
[1733159292980,0.01559203,96485.0,96467.0,0.207324]
[1733159293200,0.01559203,96485.0,96468.0,0.207322]
[1733159293416,0.01559203,96491.0,96482.0,0.207291]
[1733159293618,0.00188627,96494.0,96478.0,0.207301]
[1733159293827,0.01559203,96493.0,96472.0,0.414628]
[1733159294099,0.01559203,96493.0,96484.0,0.207287]
[1733159294312,0.01559203,96493.0,96484.0,0.7]
[1733159294475,0.01559203,96493.0,96484.0,0.907287]
[1733159294745,0.01559203,96493.0,96484.0,0.7]
[1733159294977,0.005,96485.0,96484.0,0.7]
[1733159295211,0.01559203,96493.0,96484.0,0.7]
[1733159295432,0.207271,96492.0,96484.0,0.7]
[1733159295843,0.207273,96491.0,96484.0,0.7]
[1733159296047,0.01559203,96485.0,96484.0,0.7]
[1733159296456,0.01559203,96485.0,96484.0,0.701]
[1733159296691,0.01559203,96485.0,96484.0,0.7]
[1733159296914,0.207283,96486.0,96484.0,0.7]
[1733159296915,0.20187503,96486.0,96484.0,0.7]
[1733159297115,0.20187503,96486.0,96484.0,0.702]
[1733159297356,0.15,96492.0,96484.0,0.7]
[1733159297663,0.15,96492.0,96484.0,0.701]
[1733159297882,0.00188627,96494.0,96484.0,0.908286]
[1733159298094,0.00188627,96494.0,96484.0,0.907286]
[1733159298315,0.00188627,96494.0,96484.0,0.701]
[1733159298998,0.207268,96493.0,96484.0,0.701]
[1733159299635,0.207268,96493.0,96484.0,0.7]
[1733159299828,0.001,96492.0,96484.0,0.7]
[1733159300250,0.207279,96488.0,96484.0,0.7]
[1733159300661,0.207282,96487.0,96484.0,0.7]
[1733159300876,0.00188627,96494.0,96484.0,0.7]
[1733159301100,0.207273,96491.0,96484.0,0.7]
[1733159301307,0.207282,96487.0,96484.0,0.7]
[1733159301508,0.00188627,96494.0,96484.0,0.7]
[1733159301941,0.00152027,96494.0,96484.0,0.7]
[1733159302157,0.15116996,96494.0,96484.0,0.7]
[1733159302372,0.00116996,96494.0,96484.0,0.7]
[1733159302786,0.00116996,96494.0,96485.0,0.10467961]
[1733159303016,0.00116996,96494.0,96493.0,0.207268]
[1733159303440,0.00216996,96494.0,96493.0,0.207268]
[1733159303644,0.00116996,96494.0,96491.0,0.207272]
[1733159303856,0.00216996,96494.0,96485.0,0.7173805]
[1733159304070,0.00216996,96494.0,96485.0,0.7]
[1733159304296,0.173,96492.0,96485.0,0.7]
[1733159304503,0.173,96486.0,96485.0,0.7]
[1733159304738,0.27584521,96486.0,96485.0,0.7]
[1733159305386,0.28540439,96486.0,96485.0,0.7]
[1733159305604,0.15955918,96486.0,96485.0,0.7]
[1733159305818,0.15,96486.0,96485.0,0.7]
[1733159306694,0.15,96486.0,96485.0,0.701]
[1733159307405,0.151,96486.0,96485.0,0.001]
[1733159308687,0.001,96486.0,96485.0,0.001]
[1733159310411,0.001,96486.0,96485.0,0.701]
[1733159311325,0.001,96486.0,96485.0,0.001]
[1733159311979,0.27684521,96486.0,96485.0,0.001]
[1733159312190,0.28640772,96486.0,96485.0,0.001]
[1733159312400,0.28603206,96486.0,96485.0,0.001]
[1733159313858,0.26303206,96486.0,96485.0,0.001]
[1733159314767,0.27834924,96486.0,96485.0,0.001]
[1733159315437,0.38104924,96486.0,96485.0,0.001]
[1733159315671,0.43014924,96486.0,96485.0,0.001]
[1733159316549,0.380286,96485.0,96484.0,0.00055323]
[1733159316733,0.5080109,96485.0,96484.0,0.00055323]
[1733159318285,0.02487969,96485.0,96484.0,0.00055323]
[1733159318504,0.0008649,96493.0,96485.0,0.290486]
[1733159318505,0.001,96486.0,96485.0,0.290486]
[1733159318728,0.0008649,96493.0,96492.0,0.207271]
[1733159318962,0.00959483,96524.0,96511.0,0.20723]
[1733159319184,0.00959483,96536.0,96511.0,0.0816]
[1733159319407,0.001732,96537.0,96511.0,0.0816]
[1733159319408,0.001732,96537.0,96536.0,0.207176]
[1733159319624,0.001732,96537.0,96519.0,0.2]
[1733159319625,0.001732,96537.0,96534.0,0.207179]
[1733159319852,0.001732,96537.0,96519.0,0.4]
[1733159319853,6.715e-05,96526.0,96524.0,0.207202]
[1733159320069,6.715e-05,96526.0,96525.0,0.1046786]
[1733159320366,0.001732,96537.0,96536.0,0.207176]
[1733159320580,0.001732,96537.0,96528.0,0.207193]
[1733159320810,0.001732,96537.0,96525.0,0.80291236]
[1733159320811,0.001732,96537.0,96525.0,0.70006715]
[1733159321018,0.001732,96537.0,96526.0,0.207197]
[1733159321232,0.001732,96537.0,96525.0,0.70006715]
[1733159321858,0.001732,96537.0,96526.0,0.207198]
[1733159322059,0.001732,96537.0,96536.0,0.009]
[1733159322683,0.001732,96537.0,96530.0,0.7]
[1733159322921,0.001732,96537.0,96530.0,0.907187]
[1733159323123,0.001732,96537.0,96534.0,0.20718]
[1733159323258,0.001732,96537.0,96536.0,0.7]
[1733159323732,0.001732,96537.0,96536.0,0.707]
[1733159323938,0.001732,96537.0,96536.0,0.7]
[1733159324423,0.001732,96537.0,96536.0,0.8205]
[1733159324666,0.001732,96537.0,96536.0,0.7]
[1733159324906,0.358906,96537.0,96536.0,0.7]
[1733159326095,0.358906,96537.0,96525.0,6.715e-05]
[1733159326096,0.357178,96535.0,96525.0,6.715e-05]
[1733159326315,0.15,96532.0,96527.0,0.7]
[1733159326553,0.207193,96528.0,96527.0,0.7]
[1733159327007,0.46003821,96528.0,96527.0,0.7]
[1733159327702,0.46003821,96528.0,96525.0,6.715e-05]
[1733159327703,0.69023221,96528.0,96525.0,6.715e-05]
[1733159327941,0.455398,96526.0,96525.0,6.715e-05]
[1733159328226,0.58304145,96526.0,96525.0,6.715e-05]
[1733159328473,0.78304145,96526.0,96525.0,6.715e-05]
[1733159328764,0.207281,96487.0,96486.0,0.7]
[1733159329785,0.46012621,96487.0,96486.0,0.7]
[1733159330023,0.173,96486.0,96485.0,0.0017298]
[1733159330236,0.27584521,96486.0,96485.0,0.0017298]
[1733159330445,0.27584521,96486.0,96485.0,0.00188247]
[1733159332350,0.25284521,96486.0,96485.0,0.00188247]
[1733159332556,0.25384521,96486.0,96485.0,0.00188247]
[1733159333476,0.3739759,96486.0,96485.0,0.00188247]
[1733159333677,0.38351213,96486.0,96485.0,0.00188247]
[1733159334242,0.39877221,96486.0,96485.0,0.00188247]
[1733159334651,0.30164152,96486.0,96485.0,0.00188247]
[1733159335283,0.50164152,96486.0,96485.0,4.7e-07]
[1733159335430,0.780286,96485.0,96484.0,7e-07]
[1733159335633,0.67906452,96485.0,96484.0,7e-07]
[1733159335833,0.85606452,96485.0,96484.0,7e-07]
[1733159336456,0.85906452,96485.0,96484.0,7e-07]
[1733159337781,0.85606452,96485.0,96484.0,7e-07]
[1733159338138,0.86506452,96485.0,96484.0,0.0010007]
[1733159339148,0.32866825,96485.0,96484.0,0.0010007]
[1733159339575,0.009,96485.0,96484.0,0.0298637]
[1733159339778,0.009,96485.0,96484.0,0.1057637]
[1733159341107,0.00093198,96486.0,96485.0,0.236149]
[1733159342237,0.15,96506.0,96485.0,0.33899421]
[1733159342443,0.0017322,96538.0,96519.0,0.028863]
[1733159342444,0.207177,96536.0,96519.0,0.028863]
[1733159342644,0.001732,96537.0,96519.0,0.028863]
[1733159342645,0.207211,96520.0,96519.0,0.028863]
[1733159342823,0.207236,96508.0,96506.0,0.028863]
[1733159343025,0.28866209,96520.0,96501.0,0.028863]
[1733159343237,0.207249,96502.0,96501.0,0.028863]
[1733159343435,0.414499,96502.0,96501.0,0.028863]
[1733159344287,0.207249,96502.0,96501.0,0.028863]
[1733159345974,0.414499,96502.0,96498.0,0.028863]
[1733159346233,0.207249,96502.0,96501.0,0.028863]
[1733159347565,0.207249,96502.0,96501.0,0.0305922]
[1733159347966,0.46009421,96502.0,96501.0,0.0017292]
[1733159349367,0.46962392,96502.0,96501.0,0.0017292]
[1733159350004,0.50787283,96502.0,96501.0,0.0017292]
[1733159350209,0.49262392,96502.0,96501.0,0.0017292]
[1733159350420,0.49462392,96502.0,96501.0,0.0017292]
[1733159351040,0.47162392,96502.0,96501.0,0.0017292]
[1733159352362,0.48688152,96502.0,96501.0,0.0017292]
[1733159353866,0.55922126,96502.0,96501.0,0.0017292]
[1733159354068,0.57683844,96502.0,96501.0,0.0017292]
[1733159354716,0.5044987,96502.0,96501.0,0.0017292]
[1733159357111,0.92304839,96502.0,96501.0,2e-07]
[1733159357320,0.92304839,96502.0,96484.0,6.778e-05]
[1733159357321,0.357286,96485.0,96484.0,6.778e-05]
[1733159357531,0.46969656,96485.0,96484.0,6.778e-05]
[1733159357803,0.48500112,96485.0,96484.0,6.778e-05]
[1733159358714,0.48500112,96485.0,96484.0,0.00306778]
[1733159358917,0.50240933,96485.0,96484.0,0.00306778]
[1733159359405,0.59410496,96485.0,96484.0,0.00306778]
[1733159359603,0.50240933,96485.0,96484.0,0.00306778]
[1733159363523,0.50240933,96485.0,96484.0,0.03193078]